Cogmind - Beta 13 @@@ ROGUE MODE // 2024.04.17 @ 20:02:19 Player: skelll Result: Destroyed by S-10 Pest with Light Assault Rifle Performance ------------- Evolutions (1) 500 Regions Visited (3) 600 Robots Destroyed (25) 125 Value Destroyed (576) 576 Prototype IDs (1) 20 Alien Tech Used (0) 0 Bonus (0) 0 TOTAL SCORE: 1821 Bonus ------- None Cogmind --------- Core Integrity 0/400 Matter 500/500 Energy 100/100 System Corruption 0% Temperature Cool (0) Movement Core (200) Ox3 Location -9/Storage Parts ------- > --- POWER (2) -------- (None) > --- PROPULSION (2) --- (None) > --- UTILITY (3) ------ Disposable Heat Sink Small Storage Unit High-capacity Matter Pod > --- WEAPON (2) ------- (None) > --- INVENTORY (8) ---- Light Treads Wheel Compact Wheel Airjet Advanced Weight Redist. System ECM Suite Hammer Peak State ------------ > --- POWER ------------ Improved Ion Engine > --- PROPULSION ------- Wheel Compact Wheel > --- UTILITY ---------- Small Storage Unit High-capacity Matter Pod Field Recycling Unit > --- WEAPON ----------- Improved Medium Laser Heavy Assault Rifle > --- INVENTORY -------- Light Treads Improved Aluminum Leg Airjet Disposable Heat Sink Advanced Weight Redist. System Medium Laser Hammer [Rating: 14] Favorites ----------- Power Light Ion Engine Engine Light Ion Engine Propulsion Compact Wheel Treads Light Treads Leg Improved Aluminum Leg Wheel Compact Wheel Utility Small Storage Unit Device Field Recycling Unit Storage Small Storage Unit Weapon Assault Rifle Energy Gun Beam Rifle Ballistic Gun Assault Rifle Launcher Grenade Launcher Build | -11 -10 -9 -9 ------- Run | Yrd Mat Mat Sto Slots Evolved 2 | . . 2 . Power 1 | . . 1 . Propulsion . | . . . . Utility 1 | . . 1 . Weapon . | . . . . Parts Attached 30 | 6 4 14 6 Power 3 | 1 . 2 . Engine 3 | 1 . 2 . Core . | . . . . Reactor . | . . . . Propulsion 10 | 2 2 4 2 Treads 1 | . . 1 . Leg 4 | . . 2 2 Wheel 5 | 2 2 1 . Hover . | . . . . Flight . | . . . . Utility 6 | . 1 4 1 Device 4 | . . 3 1 Storage 2 | . 1 1 . Processor . | . . . . Hackware . | . . . . Protection . | . . . . Artifact . | . . . . Weapon 11 | 3 1 4 3 Energy Gun 7 | 2 . 3 2 Energy Cannon . | . . . . Ballistic Gun 3 | 1 . 1 1 Ballistic Cannon . | . . . . Launcher 1 | . 1 . . Special Weapon . | . . . . Impact Weapon . | . . . . Slashing Weapon . | . . . . Piercing Weapon . | . . . . Special Melee Weapon . | . . . . Unidentified Prototypes 1 | . . 1 . Parts Lost 13 | . . 8 5 Power 3 | . . 3 . Propulsion 4 | . . 2 2 Utility . | . . . . Weapon 6 | . . 3 3 Highest Loss Streak 5 | . . 5 3 To Critical Strikes . | . . . . Average Slot Usage (%) 73 | . 73 77 62 Engine 7 | . 14 8 . Treads 1 | . . 1 . Leg 3 | . . 1 11 Wheel 13 | . 28 14 . Device 9 | . . 12 10 Storage 16 | . 2 17 22 Energy Gun 7 | . . 7 11 Ballistic Gun 9 | . 14 9 8 Launcher 4 | . 13 4 . Naked Turns . | . . . . Heaviest Build 30 | 7 13 30 15 Greatest Support 41 | 20 32 41 23 Greatest Overweight (x) 4 | . . 4 4 Average Overweight (x) . | . . . . Largest Inventory Capacity 8 | 5 8 8 8 Average Capacity 7 | 5 5 8 8 Most Carried 8 | 5 6 8 8 Average Carried 6 | 3 5 6 7 Final Capacity 8 | 5 8 8 8 Final Carried 7 | 5 6 7 7 Class Distribution -------------------- 100% | Mutant Dominant Class ---------------- Mutant | -10/Materials Mutant | -9/Materials Mutant | -9/Storage Resources | -11 -10 -9 -9 ----------- Run | Yrd Mat Mat Sto Matter Collected 711 | 251 1 279 180 Remotely . | . . . . Salvage Created 605 | 34 8 346 217 Parts 43 | 2 5 26 10 Haulers Intercepted . | . . . . Recyclers Shooed . | . . . . Parts Field Recycled 22 | . . 22 . Retrieved Matter 178 | . . 178 . Parts Self-Destructed . | . . . . Prevented . | . . . . Kills | -11 -10 -9 -9 ------- Run | Yrd Mat Mat Sto Combat Hostiles Destroyed 23 | 1 3 12 7 Guns 18 | 1 . 10 7 AOE 5 | . 3 2 . Classes Destroyed 4 | 1 1 2 . Watcher 2 | . . 2 . Swarmer 14 | . 3 7 4 Grunt 4 | 1 . 2 1 Sentry 5 | . . 3 2 Best Kill Streak 4 | 1 3 3 4 Combat Bots Only 4 | 1 3 3 4 Max Kills in Single Turn 2 | 1 2 2 1 Gunslinging . | . . . . Exploded 2 | . 2 2 . Melee . | . . . . Uniques/NPCs Destroyed . | . . . . Combat | -11 -10 -9 -9 -------- Run | Yrd Mat Mat Sto Hostile Shots Fired 217 | 10 6 113 88 Missed 64 | 4 3 29 28 Damage Taken 1711 | 65 124 926 596 Core 472 | 21 51 146 254 Absorbed by Shields . | . . . . Regen/Repaired (Parts) 35 | . . . 35 Core Remaining (%) 81 | 91 71 . . Volleys Fired 86 | 7 4 49 26 Largest 2 | 2 2 2 2 Hottest 106 | 100 50 106 106 Shots Fired 156 | 14 7 95 40 Gun 148 | 14 4 90 40 Cannon . | . . . . Launcher 8 | . 3 5 . Special . | . . . . Kinetic 53 | 2 4 34 13 Thermal 95 | 12 . 56 27 Explosive 8 | . 3 5 . Electromagnetic . | . . . . Robot Hit Streak 6 | 2 4 6 6 Robot Miss Streak 6 | 3 3 6 5 Penetration Max . | . . . . Secondary Targets 2 | . . 1 1 Max Gunslinging Chain 1 | . . 1 1 Shots Hit Robots 75 | 5 2 48 20 Core Hits 34 | 2 3 20 9 Critical Kills . | . . . . Critical Parts Destroyed . | . . . . Critical Strikes 3 | . . 2 1 Burn 3 | . . 2 1 Melee Attacks . | . . . . Impact . | . . . . Slashing . | . . . . Piercing . | . . . . Sneak Attacks . | . . . . Combat Hostiles . | . . . . Follow-up Attacks . | . . . . Damage Inflicted 1429 | 78 249 847 255 Guns 1040 | 78 26 681 255 Cannons . | . . . . Explosions 389 | . 223 166 . Melee . | . . . . Ramming . | . . . . Kinetic 386 | 28 26 252 80 Thermal 654 | 50 . 429 175 Explosive 389 | . 223 166 . Electromagnetic . | . . . . Impact . | . . . . Slashing . | . . . . Piercing . | . . . . Highest Corruption . | . . . . Average Corruption . | . . . . Corruption Purged . | . . . . Corruption Blocked . | . . . . Overload Shots . | . . . . Overflow Damage 23 | . . 23 . Projectiles . | . . . . Explosions 23 | . . 23 . Melee . | . . . . Knockbacks . | . . . . Impact . | . . . . Kinetic . | . . . . Secondary . | . . . . Self-Inflicted Damage 160 | . 108 52 . Shots 5 | . 3 2 . Rammed . | . . . . Targets Rammed . | . . . . Kicked . | . . . . Crushed . | . . . . Highest Temperature 577 | 225 . 577 61 Average Temperature 108 | 135 . 123 24 Received Heat Transfer 315 | 36 . 180 99 Effects 5 | . . 5 . Shutdowns 1 | . . 1 . Matter Decay 1 | . . 1 . Short Circuit 1 | . . 1 . Damage (major) 2 | . . 2 . Siege Activations . | . . . . Robots Corrupted . | . . . . Combat Hostiles . | . . . . Parts Fried . | . . . . Impact Corruptions . | . . . . Robots Melted . | . . . . Combat Hostiles . | . . . . Parts Melted 3 | . . 2 1 Heat Transferred 1887 | 148 . 1221 518 Parts Sabotaged . | . . . . Parts Stolen . | . . . . Parts Stripped . | . . . . Power Chain Reactions . | . . . . Alert | -11 -10 -9 -9 ------- Run | Yrd Mat Mat Sto Peak Influence 270 | 35 153 239 270 Initial 96 | . 22 64 96 Average 110 | 17 70 115 188 Maximum Alert Level 1 | . . 1 1 Low Security (%) 80 | 100 100 88 34 Level 1 19 | . . 11 65 Level 2 . | . . . . Level 3 . | . . . . Level 4 . | . . . . Level 5 . | . . . . High Security . | . . . . Max Security . | . . . . Squads Dispatched 1 | . . . 1 Investigation . | . . . . Extermination . | . . . . Reinforcement 1 | . . . 1 Assault . | . . . . Garrison . | . . . . Intercept . | . . . . Searches Triggered . | . . . . Construction Impeded . | . . . . Haulers Reinforced . | . . . . Active Scanning Responses . | . . . . Cargo Convoy Interrupts . | . . . . Stealth | -11 -10 -9 -9 --------- Run | Yrd Mat Mat Sto Distress Signals 4 | . . 3 1 Communications Jammed . | . . . . Distress Signals . | . . . . Times Spotted 40 | 1 4 20 15 Peak Tracking Total 7 | 1 3 6 7 Tactical Retreats . | . . . . Traps | -11 -10 -9 -9 ------- Run | Yrd Mat Mat Sto Traps Triggered 2 | . . . 2 Indirectly . | . . . . Trap Hack Attempts . | . . . . Triggered . | . . . . Disarmed . | . . . . Reprogrammed . | . . . . Reused . | . . . . Traps Extracted . | . . . . Installed . | . . . . Triggered . | . . . . Machines | -11 -10 -9 -9 ---------- Run | Yrd Mat Mat Sto Machines Disabled 3 | . 2 1 . Max in Single Turn 2 | . 2 1 . Machines Repaired . | . . . . Machines Dismantled . | . . . . Machines Sabotaged . | . . . . Overloaded Fab Kills . | . . . . Hacking | -11 -10 -9 -9 --------- Run | Yrd Mat Mat Sto Machines Accessed 2 | . . 1 1 Terminals . | . . . . Fabricators . | . . . . Repair Stations 1 | . . . 1 Recycling Units 1 | . . 1 . Scanalyzers . | . . . . Garrison Access . | . . . . Total Hacks 4 | . . 2 2 Successful 3 | . . 1 2 Failed 1 | . . 1 . Catastrophic . | . . . . Database Lockouts . | . . . . Manual 1 | . . 1 . Terminals . | . . . . Fabricators . | . . . . Repair Stations 2 | . . . 2 Recycling Units 2 | . . 2 . Scanalyzers . | . . . . Garrison Access . | . . . . Terminal Hacks . | . . . . Fabricator Hacks . | . . . . Repair Station Hacks 2 | . . . 2 Scan Component 1 | . . . 1 Repair 1 | . . . 1 Recycling Unit Hacks 1 | . . 1 . Retrieve Components 1 | . . 1 . Scanalyzer . | . . . . Garrison Access Hacks . | . . . . Unauthorized Hacks . | . . . . Terminals . | . . . . Fabricators . | . . . . Repair Stations . | . . . . Recycling Units . | . . . . Scanalyzers . | . . . . Garrison Access . | . . . . Data Cores Recovered . | . . . . Used . | . . . . Hacking Detections 2 | . . 1 1 Full Trace Events 1 | . . 1 . Feedback Events . | . . . . Feedback Blocked . | . . . . Robot Schematics Acquired . | . . . . Robots Built . | . . . . Authchips . | . . . . Time . | . . . . Total Robot Build Rating . | . . . . Part Schematics Acquired . | . . . . Parts Built . | . . . . Authchips . | . . . . Time . | . . . . Total Part Build Rating . | . . . . Parts Repaired 1 | . . . 1 Time 44 | . . . 44 Parts Recycled . | . . . . Recycled Matter . | . . . . Retrieved Matter . | . . . . Retrieved Components . | . . . . Parts Scanalyzed . | . . . . Part Schematics Acquired . | . . . . Parts Damaged . | . . . . Bothacking | -11 -10 -9 -9 ------------ Run | Yrd Mat Mat Sto Used RIF Installer . | . . . . Robots Hacked . | . . . . Non-combat . | . . . . Combat . | . . . . Robot Hacks Applied . | . . . . Relay Couplers Released . | . . . . Fabnet Peak Effective % . | . . . . Robots Rewired . | . . . . Allies Hacked . | . . . . Hacks Repelled . | . . . . Allies | -11 -10 -9 -9 -------- Run | Yrd Mat Mat Sto Total Allies . | . . . . Largest Group . | . . . . Highest-Rated Group . | . . . . Highest-Rated Ally . | . . . . Total Orders . | . . . . Ally Attacks . | . . . . Total Damage . | . . . . Kills . | . . . . Allies Corrupted . | . . . . Allies Melted . | . . . . Intel | -11 -10 -9 -9 ------- Run | Yrd Mat Mat Sto Robot Analysis Total . | . . . . Derelict Logs Recovered . | . . . . Drone Launches . | . . . . Drone Recoveries . | . . . . Exploration | -11 -10 -9 -9 ------------- Run | Yrd Mat Mat Sto Turns Passed 1322 | 182 196 673 271 Spaces Moved 900 | 192 171 425 112 Core 35 | 28 . 3 4 Treads 21 | . . 21 . Legs 144 | . . 36 108 Wheels 700 | 164 171 365 . Hover . | . . . . Flight . | . . . . Fastest Speed 50 | 50 80 100 120 Average Speed 111 | 75 98 116 172 Slowest Speed 250 | 80 100 250 250 Overloaded Moves . | . . . . Propulsion Burnouts . | . . . . Robots Hopped . | . . . . Cave-ins Triggered . | . . . . Exploration Rate (%) 22 | 11 25 36 16 Regions Visited 3 Branch Regions 1 Pre-discovered Areas . | . . . . Known Exits Taken . | . . . . Unknown Exits Taken 3 | 1 1 1 . Scrap Searched . | . . . . Spaces Dug . | . . . . Terrain Destroyed 53 | . 16 37 . Melee . | . . . . Projectile . | . . . . AOE 53 | . 16 37 . Terrain Rammed . | . . . . Walls Destroyed . | . . . . Machines Disabled . | . . . . Actions | -11 -10 -9 -9 --------- Run | Yrd Mat Mat Sto Total 1067 | 215 191 510 151 Wait 9 | . 7 . 2 Move 897 | 191 170 424 112 Hop . | . . . . Pick Up 27 | 10 2 11 4 Fast Attach 13 | . 3 6 4 Attach 16 | 6 1 7 2 Detach 6 | 1 1 4 . Swap 1 | . . 1 . Drop 12 | . 3 8 1 Fire 86 | 7 4 49 26 Melee . | . . . . Ram . | . . . . Kick . | . . . . Crush . | . . . . Escape Stasis . | . . . . Rewire . | . . . . Trap . | . . . . Miscellaneous . | . . . . Route ------- -11/Scrapyard -10/Materials -9/Materials -9/Storage History --------- Turn | Location | Event 2 | -11/Scrapyard | Met Revision 17 76 | -11/Scrapyard | Discovered new exit (range 8) 183 | -11/Scrapyard | Entered Materials 288 | -10/Materials | Discovered new exit (range 15) 314 | -10/Materials | Build established: Mutant 379 | -10/Materials | Entered another Materials area 379 | -9/Materials | Evolved 2 slots: Power x1, Utility x1 660 | -9/Materials | Lost 3 parts (1p1n1w) 999 | -9/Materials | Lost 5 parts (2p1n2w) 1022 | -9/Materials | Discovered new exit (range 7) 1052 | -9/Materials | Entered Storage 1123 | -9/Storage | Core integrity fell below 50% 1301 | -9/Storage | Repaired Broken Field Recycling Unit? 1311 | -9/Storage | Core integrity fell below 20% 1323 | -9/Storage | Destroyed by S-10 Pest with Light Assault Rifle Last Messages --------------- W-16 Scout sends out distress signal. ALERT: Hostiles spotted, dispatching reinforcements to Terminal S002. [Achievement: Uninvited Guest] G-34 Mercenary destroyed. Switching to secondary target: Y-45 Defender. K-01 Serf collects debris. [Achievement: Part-time Mechanic] >> REPAIR: Completed Broken Field Recycling Unit? K-01 Serf collects debris. Imp. Aluminum Leg destroyed. K-01 Serf destroyed. K-01 Serf collects debris. Y-45 Defender destroyed. C-30 ARC bursts open, deploying its payload. S-10 Pest unfolds itself. Beam Rifle destroyed. Lgt. Assault Rifle destroyed. [Achievement: First Step to Greatness] Map ----- +----------------------------------------------------+ | | | | | | | | | | | | | | | | | | | | | | | | | | | ??????????###???????????????????????????????????? | | ??????##### ####????????????????????????????????? | | ??????#% #????????????????????????????????? | | ??????# """"" #????????????????????????????????? | | ??##### """"" #????????????????????????????????? | | ??# # """"" #????????????????????????????????? | | ??# # #????????????????????????????????? | | ??# # """"" #????????????????????????????????? | | ??# # """"" #????????????????????????????????? | | ??# # """"" #????????????????????????????????? | | ??# # #????????????????????????????????? | | ??# #####+###################+#####???????????? | | ??# g % @ =!! s!#???????????? | | ??# g % %[% s %+%"?????????? | | ??# uaa aw *==^ ss#???????????? | | ??# ###############;##### ^^ #???????????? | | ??# #??????#### # #???????????? | | ??# #??????#""" + ^ #???????????? | | ??# #??????#"R #??######+#???????????? | | ??# #??????#""" #?????????????????????? | | ??# #??????#### #?????????????????????? | | ??# #?????????# """ """ #?????????????????????? | | ??# #?????????# """ """ #?????????????????????? | | ??# #?????????# """ """ #?????????????????????? | | ??# #?????????###########?????????????????????? | | ??# #?????????????????????????????????????????? | | ??# ??????????????????????????????????????????? | | ??# ??????????????????????????????????????????? | | ??? ??????????????????????????????????????????? | | ????????????????????????????????????????????????? | | ????????????????????????????????????????????????? | | ????????????????????????????????????????????????? | | ????????????????????????????????????????????????? | | ????????????????????????????????????????????????? | | ????????????????????????????????????????????????? | | ????????????????????????????????????????????????? | | ????????????????????????????????????????????????? | +----------------------------------------------------+ Best States ------------- Heat Dissipation 28 Coolant Potential 50 Energy Generation 12 Energy Capacity 265 Matter Stores 500 Matter Capacity 500 Sight Range 16 Terrain Scan Density 10 Additional Mass Support 9 Evasion (%) 55 Recoil Reduction 1 Item Schematics ----------------- None Robot Schematics ------------------ None Fabricated ------------ Nothing Alien Tech Used ----------------- None Achievements -------------- First Step to Greatness Let's See Who's Tougher Part-time Mechanic Risk Taker Storm Trooper Uninvited Guest Challenges ------------ None Game ------ Seed BeamGrapheneTube Manual? 0 Play Time 00:46:07 Cumulative 0.7 hours Start 2024.04.17 @ 19:05:00 End 2024.04.17 @ 20:02:19 Sessions 1 Manual Loads 0 Difficulty Rogue Special Mode None Game No. 1 Rogue 1 Adventurer 0 Explorer 0 Win Type - Total 0 Types 0/0/0/0/0/0/0/0/0 Lore% 0 Gallery% 1 Achievement% 2 Wizard Run 0 Options --------- Layout 1 ASCII 0 Keyboard 1 Movement Arrows Keybinds 0 Fullscreen 2 Font 24/Smallcaps Map View 50x35 Zoom Use 0% Tactical HUD 0 Map Filters NONE Filters NONE Steam 1 RUN: 4946bf36-08d8-4b5f-be0c-6c7bb6339419